fUST/lending_fUST_20241117
["ID","MTS","AMOUNT","RATE_DAILY","PERIOD"]
[342408287,1731810635990,-732.44239289,0.000129,2]
[342408288,1731810635999,-278.83578204,0.0001357,2]
[342408289,1731810636008,-420.0,0.00013762,2]
[342408290,1731810636017,-420.0,0.00013797,2]
[342408291,1731810636026,-906.6412944,0.00013825,2]
[342408292,1731810636035,-400.0,0.00013973,2]
[342408293,1731810636044,-661.47,0.000141,2]
[342408294,1731810636054,-732.44239285,0.00014367,2]
[342408295,1731810636063,-587.0,0.00015099,2]
[342408296,1731810636071,-587.0,0.00015177,2]
[342408297,1731810636081,-732.44239285,0.00016289,2]
[342408298,1731810636090,-319.0,0.00016695,2]
[342408299,1731810636099,-184.247,0.00017925,2]
[342408300,1731810636108,-732.44239285,0.00018211,2]
[342408301,1731810636117,-3528.59166813,0.0002,2]
[342408302,1731810636128,-3101.20768191,0.0002,2]
[342408303,1731810636137,-732.44239285,0.00020134,2]
[342408304,1731810636147,-243.75825786,0.00020347,2]
[342408305,1731810636157,-400.0,0.00020447,2]
[342408306,1731810636166,-200.08070058,0.000208,2]
[342408307,1731810636175,-153.13202786,0.00021,2]
[342408308,1731810636186,-1257.715178,0.00021,2]
[342408309,1731810636195,-243.75825783,0.00021485,2]
[342408310,1731810636205,-1000.0,0.000215,2]
[342408311,1731810636216,-1984.41,0.000217,7]
[342408312,1731810636228,-155.75,0.000219,31]
[342408313,1731810636237,-155.75,0.000219,31]
[342408314,1731810636246,-166.0,0.00022,2]
[342408315,1731810636255,-375.0,0.00022,2]
[342408316,1731810636264,-1000.0,0.00022,2]
[342408317,1731810636274,-732.44239285,0.00022056,2]
[342408318,1731810636284,-166.0,0.00022192,2]
[342408319,1731810636293,-375.0,0.00022192,2]
[342408320,1731810636302,-1000.0,0.000225,2]
[342408321,1731810636313,-243.75825783,0.00022624,2]
[342408322,1731810636323,-312.23254869,0.00023,2]
[342408323,1731810636332,-1000.0,0.00023,2]
[342408324,1731810636341,-166.0,0.00023014,2]
[342408325,1731810636352,-375.0,0.00023014,2]
[342408326,1731810636362,-155.75,0.000231,31]
[342408327,1731810636374,-155.75,0.000231,31]
[342408328,1731810636383,-117.44711962,0.00023287,2]
[342408365,1731810638817,-382.55288038,0.00023287,2]
[342408367,1731810638826,-111.60223409,0.0002357,2]
[342408471,1731810640499,-388.39776591,0.0002357,2]
[342408472,1731810640509,-243.75825783,0.00023762,2]
[342408474,1731810640519,-732.44239285,0.00023978,2]
[342408476,1731810640528,-672.07,0.00024042,3]
[342408478,1731810640538,-1760.7,0.00024052,15]
[342408480,1731810640548,-158.037,0.0002413,2]
[342408482,1731810640557,-168.0,0.00024164,2]
[342408484,1731810640567,-380.0,0.00024164,2]
[342408485,1731810640576,-155.75,0.000242,31]
[342408487,1731810640586,-155.75,0.000242,31]
[342408489,1731810640596,-7666.04267744,0.00024407,2]
[342408490,1731810640605,-500.0,0.00024657,3]
[342408491,1731810640615,-150.0,0.00024658,2]
[342408492,1731810640625,-200.0,0.00024658,15]
[342408493,1731810640635,-406.00197188,0.00024658,2]
[342408494,1731810640644,-380.0,0.00024658,2]
[342408495,1731810640655,-500.0,0.00024666,7]
[342408496,1731810640663,-7666.04267745,0.00024696,2]
[342408497,1731810640672,-3200.0,0.000247,2]
[342408498,1731810640682,-287.611,0.000247,2]
[342408499,1731810640691,-224.02,0.0002487,3]
[342408500,1731810640700,-500.0,0.00024879,2]
[342408501,1731810640709,-287.44548182,0.00024879,2]
[342408502,1731810640718,-500.0,0.00024879,2]
[342408503,1731810640730,-500.0,0.00024879,2]
[342408504,1731810640739,-500.0,0.00024879,2]
[342408505,1731810640748,-500.0,0.00024879,2]
[342408506,1731810640757,-500.0,0.00024879,2]
[342408507,1731810640766,-500.0,0.00024879,2]
[342408508,1731810640775,-400.97553902,0.00024879,2]
[342408509,1731810640785,-500.0,0.00024879,2]
[342408510,1731810640794,-500.0,0.00024879,2]
[342408511,1731810640803,-500.0,0.00024879,2]
[342408512,1731810640812,-500.0,0.00024879,2]
[342408513,1731810640821,-500.0,0.00024879,2]
[342408514,1731810640830,-500.0,0.00024879,2]
[342408515,1731810640839,-500.0,0.00024879,2]
[342408516,1731810640848,-500.0,0.00024879,2]
[342408517,1731810641060,-500.0,0.00024879,2]
[342408518,1731810641071,-500.0,0.00024879,2]
[342408519,1731810641081,-500.0,0.00024879,2]
[342408520,1731810641093,-500.0,0.00024879,2]
[342408521,1731810641102,-500.0,0.00024879,2]
[342408522,1731810641112,-500.0,0.00024879,2]
[342408523,1731810641121,-500.0,0.00024879,2]
[342408524,1731810641130,-500.0,0.00024879,2]
[342408525,1731810641139,-500.0,0.00024879,2]
[342408526,1731810641148,-500.0,0.00024879,2]
[342408527,1731810641157,-500.0,0.00024879,2]
[342408528,1731810641166,-500.0,0.00024879,2]
[342408529,1731810641175,-193.20523579,0.00024879,2]
[342408534,1731810643609,-1614.0,0.00024052,15]
[342408536,1731810643619,-306.79476421,0.00024879,2]
[342408538,1731810643628,-500.0,0.00024879,2]
[342408540,1731810643638,-636.64003372,0.00024879,2]
[342408542,1731810643647,-500.0,0.00024879,2]
[342408543,1731810643656,-500.0,0.00024879,2]
[342408544,1731810643665,-500.0,0.00024879,2]
[342408545,1731810643676,-500.0,0.00024879,2]
[342408546,1731810643685,-513.84903705,0.00024879,2]
[342408547,1731810643695,-500.0,0.00024879,2]
[342408548,1731810643704,-500.0,0.00024879,2]
[342408549,1731810643713,-193.63049893,0.00024879,2]
[342408550,1731810643890,-1000.0,0.000245,2]
[342408551,1731810643900,-306.36950107,0.00024879,2]
[342408552,1731810643910,-500.0,0.00024879,2]
[342408553,1731810643920,-464.8191435,0.00024879,2]
[342408554,1731810643931,-35.1808565,0.00024879,2]
[342408555,1731810643941,-500.0,0.00024879,2]
[342408556,1731810643951,-500.0,0.00024879,2]
[342408557,1731810643961,-500.0,0.00024879,2]
[342408558,1731810643970,-500.0,0.00024879,2]
[342408559,1731810643984,-500.0,0.00024879,2]
[342408560,1731810643993,-500.0,0.00024879,2]
[342408561,1731810644002,-500.0,0.00024879,2]
[342408562,1731810644011,-400.36656952,0.00024879,2]
[342408563,1731810644021,-500.0,0.00024879,2]
[342408564,1731810644030,-500.0,0.00024879,2]
[342408565,1731810644040,-103.72539477,0.00024879,2]
[342408572,1731810646526,-1000.0,0.00024,2]
[342408573,1731810646536,-1546.2522,0.00024052,15]
[342408575,1731810646545,-396.27460523,0.00024879,2]
[342408577,1731810646554,-500.0,0.00024879,2]
[342408578,1731810646563,-500.0,0.00024879,2]
[342408579,1731810646572,-500.0,0.00024879,2]
[342408580,1731810646582,-433.44172656,0.00024879,2]
[342408581,1731810646591,-499.99999999,0.00024879,2]
[342408582,1731810646600,-448.03,0.0002488,3]
[342408583,1731810646610,-288.3869308,0.000249,2]
[342408584,1731810676047,157.927,0.0002522,60]
[342408585,1731811021403,-396.88,0.000141,2]
[342408589,1731811114915,357.19,0.000141,2]
[342408591,1731811168617,400.0,0.00013973,2]
[342408593,1731811300132,321.47,0.000141,2]
[342408594,1731811487209,289.32,0.000141,2]
[342408597,1731811673112,260.39,0.000141,2]
[342408738,1731811840721,-2778.33125337,0.00018941,2]
[342408751,1731811844227,-837.20974663,0.00018941,2]
[342408753,1731811844237,-150.0,0.00019325,2]
[342408755,1731811844246,-151.51969711,0.0002,2]
[342408757,1731811844256,-400.0,0.00020447,2]
[342408758,1731811844265,-781.18,0.000218,7]
[342408759,1731811844274,-154.3,0.000219,31]
[342408760,1731811844283,-154.3,0.000219,31]
[342408761,1731811844293,-154.3,0.000219,31]
[342408762,1731811844302,-154.3,0.000219,31]
[342408763,1731811844312,-528.0,0.00022,2]
[342408764,1731811844321,-314.4232781,0.00022099,2]
[342408765,1731811844330,-300.0,0.00022175,2]
[342408766,1731811844339,-300.0,0.00022177,2]
[342408767,1731811844350,-2275.4079351,0.00022178,2]
[342408768,1731811844360,-150.0,0.00022325,2]
[342408769,1731811844369,-504.971141,0.00022334,2]
[342408770,1731811844378,-163.63707967,0.00022429,2]
[342408771,1731811844389,-5979.73449176,0.00022429,2]
[342408772,1731811844400,-8338.61073037,0.00022429,2]
[342408773,1731811844409,-160.989161,0.00022608,2]
[342408774,1731811844418,-165.701681,0.00022896,2]
[342408775,1731811844427,-165.701681,0.00022915,2]
[342408776,1731811844436,-165.701681,0.00022934,2]
[342408777,1731811844450,-165.701681,0.00022953,2]
[342408778,1731811844459,-165.701681,0.00022972,2]
[342408779,1731811844469,-165.701681,0.00022991,2]
[342408780,1731811844479,-165.701681,0.0002301,2]
[342408781,1731811844488,-504.971141,0.00023019,2]
[342408782,1731811844497,-154.3,0.000231,31]
[342408783,1731811844506,-154.3,0.000231,31]
[342408784,1731811844515,-615.0,0.000231,2]
[342408785,1731811844525,-500.0,0.0002357,2]
[342408786,1731811844535,-504.971141,0.00023704,2]
[342408787,1731811844544,-201.0,0.0002396,12]
[342408788,1731811844553,-183.11059822,0.00023995,2]
[342408789,1731811844562,-1555.6733,0.00024052,15]
[342408790,1731811844572,-420.0,0.00024095,2]
[342408791,1731811844582,-154.3,0.000242,31]
[342408792,1731811844591,-154.3,0.000242,31]
[342408793,1731811844600,-300.0,0.00024393,2]
[342408794,1731811844609,-500.0,0.00024571,2]
[342408795,1731811844618,-150.0,0.00024658,2]
[342408796,1731811844628,-380.0,0.00024658,2]
[342408797,1731811844637,-200.0,0.00024658,15]
[342408798,1731811844647,-392.69164403,0.00024658,2]
[342408799,1731811844656,-500.0,0.00024666,7]
[342408800,1731811844665,-719.69148072,0.00024739,2]
[342408801,1731811844674,-2181.90055872,0.00024739,2]
[342408808,1731811846824,-1426.0,0.00024052,15]
[342408809,1731811846833,-1000.0,0.000245,2]
[342408810,1731811846843,-183.11059821,0.0002463,2]
[342408811,1731811846853,-9563.60074943,0.00024739,2]
[342408812,1731811846862,-243.75825783,0.00024799,2]
[342408813,1731811846871,-282.39,0.0002488,3]
[342408814,1731811846884,-157.967,0.0002488,2]
[342408815,1731811846894,-847.18,0.0002489,3]
[342408816,1731811846903,-7227.11078888,0.0002489,10]
[342408819,1731811859092,156.23,0.000141,2]
[342408820,1731811878390,167.482,0.0002522,60]
[342408830,1731811950708,400.0,0.00013973,2]
[342408831,1731812044224,150.0,0.000141,2]
[342408832,1731812177680,500.0,0.00015968,2]
[342408833,1731812198848,500.0,0.0001517,2]
[342408834,1731812220000,500.0,0.00014411,2]
[342408835,1731812229986,150.0,0.000142,2]
[342408836,1731812242892,380.42881743,0.00013691,2]
[342408839,1731812415343,150.0,0.000142,2]
[342408840,1731812416754,6413.0,0.00016,10]
[342408854,1731812600211,150.0,0.000142,2]
[342408855,1731812785197,150.0,0.000142,2]
[342408857,1731812891245,400.0,0.00013973,2]
[342408858,1731812965305,-500.0,0.00016809,2]
[342408859,1731812965325,-591.68097346,0.00017593,3]
[342408860,1731812970560,150.0,0.000142,2]
[342408874,1731813032275,-9.08731194,0.00017593,3]
[342408875,1731813032284,-500.0,0.00017694,2]
[342408876,1731813032294,-500.0,0.00018578,2]
[342408877,1731813032304,-500.0,0.00019507,2]
[342408878,1731813032314,-150.0,0.00019655,2]
[342408879,1731813032323,-2703.0,0.0002,2]
[342408880,1731813032332,-400.0,0.00020447,2]
[342408881,1731813032343,-500.0,0.00020482,2]
[342408882,1731813032353,-160.989161,0.00021093,2]
[342408883,1731813032362,-249.7676641,0.00021346,2]
[342408884,1731813032371,-970.7482344,0.00021381,2]
[342408885,1731813032380,-948.1292736,0.00021442,2]
[342408886,1731813032390,-1087.4531143,0.0002149,2]
[342408887,1731813032399,-300.0,0.00021492,2]
[342408888,1731813032408,-300.0,0.00021492,2]
[342408889,1731813032417,-243.4824022,0.00021493,2]
[342408890,1731813032428,-500.0,0.00021507,2]
[342408891,1731813032437,-2703.0,0.000216,4]
[342408892,1731813032447,-154.51,0.000219,31]
[342408893,1731813032456,-154.51,0.000219,31]
[342408894,1731813032466,-154.51,0.000219,31]
[342408895,1731813032475,-187.0,0.00022,2]
[342408896,1731813032484,-196.84,0.00022,7]
[342408897,1731813032493,-187.0,0.00022192,2]
[342408898,1731813032503,-500.0,0.00022582,2]
[342408899,1731813032514,-150.0,0.00022655,2]
[342408900,1731813032523,-466.63504368,0.00022963,2]
[342408901,1731813032533,-187.0,0.00023014,2]
[342408902,1731813032543,-2703.0,0.00023328,7]
[342408903,1731813032552,-420.0,0.00023366,2]
[342408904,1731813032562,-191.482909,0.00023444,2]
[342408905,1731813032572,-500.0,0.0002357,2]
[342408906,1731813032581,-300.0,0.00023641,2]
[342408907,1731813032599,-1431.57439,0.0002367,15]
[342408908,1731813032609,-500.0,0.00023711,2]
[342408909,1731813032618,-1749.510563,0.00024,2]
[342408910,1731813032628,-465.08175218,0.00024111,2]
[342408911,1731813032637,-191.0,0.00024164,2]
[342408912,1731813032647,-183.11059821,0.0002439,2]
[342408913,1731813032659,-3831.39296229,0.00024468,2]
[342408936,1731813038215,-1311.301,0.0002367,15]
[342408938,1731813038225,-3007.97147314,0.00024468,2]
[342408940,1731813038234,-564.78,0.0002449,3]
[342408942,1731813038247,-500.0,0.00024499,2]
[342408944,1731813038257,-500.0,0.00024499,2]
[342408946,1731813038266,-500.0,0.00024499,2]
[342408948,1731813038276,-592.71302951,0.00024499,2]
[342408950,1731813038286,-500.0,0.00024499,2]
[342408952,1731813038295,-534.10643707,0.00024499,2]
[342408954,1731813038305,-459.62667041,0.00024499,2]
[342408956,1731813038314,-500.0,0.00024499,2]
[342408958,1731813038325,-4028.53310994,0.000245,2]
[342409041,1731813043024,-1257.6357,0.0002367,15]
[342409042,1731813043034,-1169.89248018,0.000245,2]
[342409043,1731813043046,-475.6,0.000245,2]
[342409044,1731813043058,-529.0832,0.000245,2]
[342409045,1731813043069,-447.59228271,0.000245,2]
[342409046,1731813043078,-422.45771729,0.000245,2]
[342409058,1731813046074,-1287.21,0.0002367,15]
[342409061,1731813046085,-57.33660319,0.000245,2]
[342409062,1731813046095,-2159.73677497,0.000245,2]
[342409063,1731813154278,150.0,0.00016,2]
[342409066,1731813338279,159.32,0.00016,2]
[342409079,1731813603989,400.0,0.00013973,2]
[342409084,1731813819596,-667.0,0.00026137,120]
[342409154,1731814232195,-207.12484042,0.00016709,2]
[342409156,1731814232205,-427.51884485,0.00018,2]
[342409184,1731814238335,-323.81791502,0.00018,2]
[342409187,1731814238485,-994.03910052,0.00018,2]
[342409188,1731814238495,-181.908763,0.00019178,2]
[342409189,1731814238504,-183.22101,0.00019586,2]
[342409190,1731814238514,-2000.0,0.0002,2]
[342409191,1731814238523,-300.0,0.00020032,2]
[342409192,1731814238532,-300.0,0.00020032,2]
[342409193,1731814238541,-24860.0,0.00020033,2]
[342409194,1731814238551,-1897.11506915,0.00020377,2]
[342409195,1731814238560,-400.0,0.00020447,2]
[342409196,1731814238569,-150.0,0.00020685,2]
[342409197,1731814238581,-162.183094,0.00020752,2]
[342409198,1731814238592,-1213.5533357,0.00020897,2]
[342409199,1731814238601,-1362.600091,0.00021523,2]
[342409200,1731814238611,-183.22101,0.00021648,2]
[342409201,1731814238621,-420.0,0.00021812,2]
[342409202,1731814238630,-3325.35053642,0.00022,2]
[342409203,1731814238639,-413.93597667,0.00022,2]
[342409204,1731814238648,-3812.8307558,0.00022,2]
[342409205,1731814238658,-154.0,0.00022,2]
[342409206,1731814238667,-868.0,0.00022,2]
[342409207,1731814238676,-202.0,0.00022,2]
[342409208,1731814238685,-25626.25986392,0.00022,2]
[342409209,1731814238695,-813.77073565,0.00022,3]
[342409210,1731814238705,-154.0,0.00022192,2]
[342409211,1731814238715,-868.0,0.00022192,2]
[342409212,1731814238724,-1362.600091,0.00022208,2]
[342409213,1731814238733,-868.0,0.00022466,2]
[342409214,1731814238743,-868.0,0.0002274,2]
[342409215,1731814238752,-173.5711295,0.00022791,2]
[342409216,1731814238762,-1362.600091,0.00022893,2]
[342409217,1731814238771,-242.35984738,0.00023,2]
[342409218,1731814238781,-160.0,0.00023013,3]
[342409219,1731814238790,-868.0,0.00023014,2]
[342409220,1731814238800,-154.0,0.00023014,2]
[342409221,1731814238809,-868.0,0.00023014,2]
[342409222,1731814238818,-202.0,0.00023014,2]
[342409223,1731814238828,-868.0,0.00023288,2]
[342409224,1731814238837,-261.55,0.00023473,2]
[342409225,1731814238849,-500.0,0.0002357,2]
[342409226,1731814238858,-150.0,0.00023685,2]
[342409227,1731814238867,-160.0,0.00023761,4]
[342409228,1731814238879,-166.579635,0.00023836,2]
[342409229,1731814238890,-868.0,0.00023934,2]
[342409230,1731814238899,-1500.0,0.00024,2]
[342409231,1731814238908,-19061.40425536,0.00024,2]
[342409232,1731814238917,-151.0,0.00024,7]
[342409233,1731814238931,-1286.38,0.00024058,15]
[342409234,1731814238942,-886.0,0.00024164,2]
[342409235,1731814238954,-159.0,0.00024164,2]
[342409236,1731814238964,-378.23790176,0.00024243,2]
[342409237,1731814238974,-260.38410778,0.00024243,2]
[342409238,1731814238985,-497.22946044,0.00024243,2]
[342409239,1731814238996,-517.37824205,0.00024243,2]
[342409240,1731814239006,-500.0,0.00024243,2]
[342409241,1731814239015,-500.0,0.00024243,2]
[342409242,1731814239024,-500.0,0.00024243,2]
[342409243,1731814239035,-500.0,0.00024243,2]
[342409244,1731814239044,-500.0,0.00024243,2]
[342409245,1731814239055,-500.0,0.00024243,2]
[342409246,1731814239065,-500.0,0.00024243,2]
[342409247,1731814239075,-500.0,0.00024243,2]
[342409248,1731814239084,-500.0,0.00024243,2]
[342409249,1731814239095,-500.0,0.00024243,2]
[342409250,1731814239104,-500.0,0.00024243,2]
[342409251,1731814239113,-500.0,0.00024243,2]
[342409252,1731814239123,-500.0,0.00024243,2]
[342409253,1731814239132,-500.0,0.00024243,2]
[342409254,1731814239141,-500.0,0.00024243,2]
[342409255,1731814239150,-500.0,0.00024243,2]
[342409256,1731814239160,-342.96797772,0.00024243,2]
[342409257,1731814239169,-560.68191643,0.00024243,2]
[342409258,1731814239178,-500.0,0.00024243,2]
[342409259,1731814239188,-500.0,0.00024243,2]
[342409260,1731814239199,-500.0,0.00024243,2]
[342409261,1731814239209,-500.0,0.00024243,2]
[342409262,1731814239219,-500.0,0.00024243,2]
[342409263,1731814239231,-500.0,0.00024243,2]
[342409264,1731814239242,-500.0,0.00024243,2]
[342409265,1731814239251,-500.0,0.00024243,2]
[342409266,1731814239261,-8619.72039547,0.00024244,2]
[342409267,1731814239270,-151.0,0.00024319,7]
[342409268,1731814239279,-388.29374613,0.00024399,2]
[342409269,1731814239288,-2322.05591036,0.000244,2]
[342409270,1731814239298,-155.56,0.000244,31]
[342409271,1731814239307,-155.56,0.000244,31]
[342409272,1731814239316,-155.56,0.000244,31]
[342409273,1731814239325,-155.56,0.000244,31]
[342409274,1731814239334,-155.56,0.000244,31]
[342409275,1731814239345,-388.29374611,0.00024474,2]
[342409276,1731814239354,-500.0,0.00024499,2]
[342409277,1731814239364,-206.74170568,0.00024499,4]
[342409278,1731814239373,-151.0,0.00024499,7]
[342409279,1731814239383,-151.0,0.00024499,7]
[342409280,1731814239392,-151.0,0.00024499,7]
[342409281,1731814239401,-151.0,0.00024499,7]
[342409282,1731814239410,-237.27370405,0.00024499,2]
[342409283,1731814239420,-155.81200593,0.00024499,2]
[342409284,1731814239429,-203.34343002,0.00024499,2]
[342409285,1731814239438,-163.70028937,0.00024499,2]
[342409286,1731814239448,-30000.0,0.000245,2]
[342409287,1731814239457,-30000.0,0.000245,2]
[342409288,1731814239467,-22029.59424042,0.000245,2]
[342409289,1731814239477,-25158.75150763,0.000245,2]
[342409290,1731814239491,-825.19982806,0.000245,2]
[342409291,1731814239500,-151.0,0.000245,7]
[342409292,1731814239510,-116.08017194,0.000245,7]
[342409312,1731814243048,-34.91982806,0.000245,7]
[342409314,1731814243057,-151.0,0.000245,7]
[342409316,1731814243067,-151.0,0.000245,7]
[342409318,1731814243077,-151.0,0.000245,7]
[342409320,1731814243087,-160.40032,0.000245,7]
[342409322,1731814243101,-151.993854,0.000245,7]
[342409323,1731814243110,-151.0,0.000245,7]
[342409324,1731814243120,-151.0,0.000245,7]
[342409325,1731814243129,-151.0,0.000245,7]
[342409326,1731814243139,-151.0,0.000245,7]
[342409327,1731814243148,-160.0,0.00024508,5]
[342409328,1731814243158,-388.29374611,0.0002455,2]
[342409329,1731814243167,-106.51852383,0.00024625,2]
[342409330,1731814243207,-22.27920354,0.00024625,2]
[342409358,1731814598328,400.0,0.00013973,2]
[342409388,1731815309304,400.0,0.00013973,2]
[342409485,1731815443293,-300.0,0.00020346,2]
[342409487,1731815443303,-300.0,0.00020346,2]
[342409489,1731815443313,-338.67271535,0.00020347,2]
[342409490,1731815443323,-271.49022821,0.00020347,2]
[342409492,1731815443332,-1586.90741356,0.00020347,3]
[342409493,1731815443344,-7751.20161862,0.00020347,3]
[342409494,1731815443606,-4177.78878711,0.00020347,3]
[342409495,1731815443618,-34501.25391862,0.00020347,3]
[342409496,1731815443628,-400.0,0.00020447,2]
[342409497,1731815443637,-170.20750786,0.00021735,2]
[342409498,1731815443646,-186.6820715,0.00022076,2]
[342409499,1731815443655,-164.17451342,0.00022633,2]
[342409500,1731815443664,-1000.0,0.0002279,4]
[342409501,1731815443674,-1000.0,0.0002279,4]
[342409502,1731815443684,-160.989161,0.0002279,2]
[342409503,1731815443693,-170.20750786,0.00023124,2]
[342409504,1731815443702,-153.0,0.00023541,2]
[342409505,1731815443712,-500.0,0.0002357,2]
[342409506,1731815443721,-155.2579985,0.00023741,2]
[342409507,1731815443731,-151.0,0.00024,7]
[342409508,1731815443740,-600.0,0.00024,2]
[342409509,1731815443750,-856.42404174,0.0002405,2]
[342409510,1731815443759,-1232.812433,0.00024058,15]
[342409511,1731815443771,-9977.05143723,0.00024075,2]
[342409512,1731815443781,-602.08692431,0.0002425,2]
[342409513,1731815443791,-153.658859,0.00024319,7]
[342409514,1731815443801,-8619.72039547,0.00024347,2]
[342409515,1731815443810,-500.0,0.00024363,2]
[342409516,1731815443820,-415.5,0.000244,7]
[342409517,1731815443830,-151.0,0.00024499,7]
[342409518,1731815443839,-153.921538,0.000245,7]
[342409519,1731815443849,-153.0,0.000245,2]
[342409520,1731815443859,-155.62,0.000245,31]
[342409521,1731815443868,-155.62,0.000245,31]
[342409522,1731815443878,-155.62,0.000245,31]
[342409523,1731815443887,-155.62,0.000245,31]
[342409524,1731815443898,-155.62,0.000245,31]
[342409525,1731815443907,-155.62,0.000245,31]
[342409526,1731815443917,-155.62,0.000245,31]
[342409527,1731815443926,-1000.0,0.000245,2]
[342409528,1731815443935,-170.20750786,0.00024512,2]
[342409529,1731815443945,-161.57142844,0.00024569,2]
[342409530,1731815443955,-161.57142842,0.00024652,2]
[342409531,1731815443968,-150.0,0.00024658,2]
[342409532,1731815443979,-151.0,0.00024658,7]
[342409533,1731815443989,-151.0,0.00024658,7]
[342409534,1731815443999,-151.0,0.00024658,7]
[342409535,1731815444008,-151.0,0.00024658,7]
[342409536,1731815444022,-151.0,0.00024658,7]
[342409537,1731815444035,-151.0,0.00024658,7]
[342409538,1731815444047,-151.0,0.00024658,7]
[342409539,1731815444057,-151.0,0.00024658,7]
[342409540,1731815444067,-151.0,0.00024658,7]
[342409541,1731815444076,-151.0,0.00024658,7]
[342409542,1731815444086,-380.0,0.00024658,2]
[342409543,1731815444095,-371.71230257,0.00024658,2]
[342409544,1731815444105,-200.0,0.00024658,2]
[342409545,1731815444115,-950.8383013,0.00024658,4]
[342409546,1731815444125,-200.0,0.00024658,15]
[342409547,1731815444136,-500.0,0.00024666,7]
[342409548,1731815444146,-19335.70940276,0.0002467,10]
[342409549,1731815444159,-597.75201018,0.0002467,10]
[342409578,1731815962700,400.0,0.00013973,2]
[342409582,1731816233179,413.5850058,0.000261,120]
[342409583,1731816253033,10247.62349603,0.00026,60]
[342409683,1731816632322,-7537.84826209,0.00020347,3]
[342409685,1731816632332,-312.48807183,0.00020347,2]
[342409686,1731816632343,-400.0,0.00020447,2]
[342409687,1731816632355,-300.0,0.00020695,2]
[342409688,1731816632365,-300.0,0.00020695,2]
[342409689,1731816632375,-1773.0,0.00020696,2]
[342409690,1731816632386,-318.0,0.00022,2]
[342409691,1731816632396,-318.0,0.00022192,2]
[342409692,1731816632406,-1773.0,0.00022352,4]
[342409694,1731816632416,-172.813324,0.00022479,2]
[342409695,1731816632426,-318.0,0.00023014,2]
[342409696,1731816632436,-163.6370797,0.00023057,2]
[342409697,1731816632445,-168.323713,0.00023291,2]
[342409698,1731816632459,-500.0,0.0002357,2]
[342409699,1731816632471,-160.0,0.00023761,3]
[342409700,1731816632481,-168.323713,0.00023976,2]
[342409701,1731816632490,-600.0,0.00024,2]
[342409702,1731816632500,-470.14368546,0.00024058,4]
[342409703,1731816632510,-1181.56603,0.00024062,15]
[342409704,1731816632520,-500.0,0.00024075,2]
[342409705,1731816632529,-1608.81670793,0.0002414,7]
[342409723,1731816638470,-1083.16,0.00024062,15]
[342409724,1731816638480,-164.18329207,0.0002414,7]
[342409725,1731816638489,-325.0,0.00024164,2]
[342409726,1731816638498,-600.0,0.0002425,2]
[342409727,1731816638508,-1862.38718866,0.00024573,2]
[342409728,1731816638521,-1991.78514068,0.00024573,2]
[342409750,1731816643197,-1038.0,0.00024062,15]
[342409751,1731816643207,-4421.73942109,0.00024573,2]
[342409752,1731816643220,-225.03890102,0.00024657,2]